[Event "20th Delhi GM Open 2023"]
[Site "New Delhi"]
[Date "2023.03.26"]
[Round "5.3"]
[White "Kobalia, Mikhail"]
[Black "Zhakshylykov, Erzhan"]
[Result "1/2-1/2"]
[ECO "C84"]
[WhiteElo "2577"]
[BlackElo "2274"]
[Annotator "TA"]
[PlyCount "92"]
[EventDate "2023.03.23"]
[EventType "swiss"]
[EventCountry "IND"]
[SourceTitle "playchess.com"]
[Source "ChessBase"]
[SourceQuality "1"]
[TimeControl "5400+30"]

{[%evp 19,92,27,27,14,12,18,33,19,35,23,26,24,23,12,32,14,54,33,40,35,73,44,63,43,63,64,76,74,63,70,59,68,69,31,149,0,0,0,0,0,0,0,0,0,0,0,0,0,0,0,0,0,0,0,0,0,0,0,0,0,0,0,0,0,0,0,0,0,0,0,0,0,0,0,0]} 1. e4 {[%emt 0:00:03]} e5 {[%emt 0:00:09]} 2. Nf3 {[%emt 0:00:05]} Nc6 {[%emt 0:00:04]} 3. Bb5 {[%emt 0:00:03][%cal Bf1b5,Bb5a4,Ba4b3,Bb3d5][%mdl 32]} a6 {[%emt 0:00:06]} 4. Ba4 {[%emt 0:00:05]} Nf6 {[%emt 0:00:06]} 5. O-O {[%emt 0:00:03]} Be7 {[%emt 0:01:00]} 6. d3 {[%emt 0:00:05]} b5 {[%emt 0:00:20]} 7. Bb3 {[%emt 0:00:05]} O-O {[%emt 0:00:35]} 8. a4 {[%emt 0:00:30]} Rb8 {[%emt 0:08:03]} 9. axb5 {[%emt 0:02:01]} axb5 {[%emt 0:00:04]} 10. Nc3 {[%emt 0:00:10]} d6 {[%emt 0:00:55]} 11. Nd5 {[%emt 0:00:11] C84: Closed Ruy Lopez: Unusual White 6th moves.} Nxd5 {[%emt 0:02:38]} 12. Bxd5 {[%emt 0:02:18]} Bd7 {[%emt 0:03:01]} 13. Be3 {[%emt 0:06:32] White is slightly better.} Bf6 {[%emt 0:05:36] [#]} 14. h3 $146 {[%emt 0:01:41]} ({Predecessor:} 14. c3 Qe8 15. Ra6 Ne7 16. Bb3 Ra8 17. Rxa8 Qxa8 18. Qc2 c5 19. Qb1 Bc6 20. Bc2 {1-0 Lerch,P (2241)-Keil,U (2132) Berlin Lichtenberger op 13th 2014 (7)}) 14... Qe8 {[%emt 0:06:08]} 15. Qd2 {[%emt 0:02:21]} Ne7 {[%emt 0:11:57]} 16. Bb3 {[%emt 0:00:35]} Bc6 {[%emt 0:03:12]} 17. Ra7 {[%emt 0:04:34]} Qd8 {[%emt 0:06:08]} 18. Qe2 {[%emt 0:18:53]} Ng6 {[%emt 0:03:02]} 19. Nh2 {[%emt 0:02:11]} Be7 {[%emt 0:05:49]} 20. g3 {[%emt 0:03:46]} d5 $1 {[%emt 0:13:17]} 21. exd5 {[%emt 0:02:24]} Bxd5 {[%emt 0:00:25]} 22. Bxd5 {[%emt 0:00:32]} Qxd5 {[%emt 0:00:04]} 23. Rxc7 {[%emt 0:00:51]} f5 {[%emt 0:02:34][%cal Bf7f5,Bf5f4][%mdl 32]} 24. Qf3 {[%emt 0:04:37]} Qd8 {[%emt 0:04:39]} 25. Qc6 {[%emt 0:02:35]} (25. Rb7 {simplifies} Rxb7 26. Qxb7 Qc8 27. Qxc8 Rxc8 28. Rc1) 25... f4 {[%emt 0:01:33] [#] Threatens to win with ...Rf6.} 26. Ba7 {[%emt 0:07:33]} Ra8 {[%emt 0:02:21]} (26... Rf6 $14 27. Qd7 (27. Qc3 Ra8 $17) 27... Ra8) 27. Bc5 {[%emt 0:02:53]} (27. Rd7 $6 Qc8 28. Qxc8 (28. Qxb5 fxg3 29. Ng4 gxf2+ 30. Rxf2 Kh8 $11) 28... Rfxc8 $14) (27. g4 $16) 27... Bxc5 $11 {[%emt 0:01:46] The position is equal.} 28. Qxc5 {[%emt 0:02:44]} fxg3 $1 {[%emt 0:02:22]} 29. fxg3 {[%emt 0:00:12]} Qg5 $1 {[%emt 0:01:31]} 30. Qd5+ {[%emt 0:02:18]} (30. Qxb5 $2 {is the wrong capture.} Qxg3+ 31. Kh1 Rxf1+ 32. Nxf1 Qf3+ 33. Kg1 Rf8 34. Qc4+ Kh8 $19) 30... Kh8 {[%emt 0:00:04]} 31. Qg2 {[%emt 0:00:20] Active counter play!} (31. Qxb5 Qxg3+ 32. Kh1 Rf2 33. Rxf2 Qxf2 34. d4 Ra1+) 31... Rxf1+ $1 {[%emt 0:00:47]} 32. Nxf1 {[%emt 0:03:42]} Rf8 {[%emt 0:00:27]} 33. Ra7 {[%emt 0:06:19]} e4 {[%emt 0:09:59] [#] aiming for ...Qc5+.} 34. Ra1 {[%emt 0:02:58]} (34. dxe4 $2 {too greedy.} Qc5+ 35. Kh1 Qxa7 $19) 34... exd3 {[%emt 0:02:56]} 35. cxd3 {[%emt 0:00:02]} Qc5+ {[%emt 0:00:45]} 36. Kh1 {[%emt 0:00:14]} Qd4 {[%emt 0:01:02]} 37. Ra8 {[%emt 0:06:07]} Qxd3 {[%emt 0:00:10]} 38. Nd2 {[%emt 0:00:44]} Kg8 {[%emt 0:00:48]} 39. Rxf8+ {[%emt 0:00:08]} Nxf8 {[%emt 0:00:04][%mdl 4096] Endgame KQN-KQN} 40. Nf3 {[%emt 0:00:19]} Qe4 {[%emt 0:01:01]} 41. Ng5 {[%emt 0:01:38]} Qe5 {[%emt 0:00:15]} 42. Ne4 {[%emt 0:03:49]} Ne6 {[%emt 0:00:53]} 43. Qc2 {[%emt 0:00:20]} h6 {[%emt 0:01:07]} 44. Qc8+ {[%emt 0:03:21]} Kh7 {[%emt 0:00:21]} 45. Qc2 {[%emt 0:00:05] White threatens Nf6+ and mate.} Kg8 {[%emt 0:00:41]} 46. Qc8+ {[%emt 0:01:21]} Kh7 {[%emt 0:00:07] Weighted Error Value: White=0.13 (very precise) /Black=0.08 (flawless)} 1/2-1/2

[Event "20th Delhi GM Open 2023"]
[Site "New Delhi"]
[Date "2023.03.26"]
[Round "5.4"]
[White "Jaiswal, Rupesh"]
[Black "Mchedlishvili, Mikheil"]
[Result "0-1"]
[ECO "B40"]
[WhiteElo "2153"]
[BlackElo "2569"]
[Annotator "TA"]
[PlyCount "112"]
[EventDate "2023.03.23"]
[EventType "swiss"]
[EventCountry "IND"]
[SourceTitle "playchess.com"]
[Source "ChessBase"]
[SourceQuality "1"]
[TimeControl "5400+30"]

{[%evp 9,112,7,20,16,13,0,0,0,0,0,0,0,0,-7,-10,-29,7,0,0,-7,-24,-6,-25,-25,-29,-48,-19,-28,-31,-40,-32,-51,-55,-64,-18,-69,-31,-87,-95,-83,-25,-25,-22,-22,-14,0,0,0,0,0,0,-39,0,0,0,0,0,0,0,0,0,0,0,-18,0,0,0,-102,-104,-98,-8,-8,-8,-25,-25,-25,-25,-25,-25,-25,-8,-8,-8,-13,-14,-14,-21,-1111,-399,-4766,-4490,-3764,-3536,-5185,-5514,-5700,-3683,-2510,-2116,-29962,-29966,-29967,-29965,-6550,-6543]} 1. e4 {[%emt 0:00:03]} c5 {[%emt 0:00:17]} 2. Nf3 {[%emt 0:00:06]} e6 {[%emt 0:00:25]} 3. g3 {[%emt 0:00:03]} Nc6 {[%emt 0:00:39]} 4. Bg2 {[%emt 0:00:04]} Nf6 {[%emt 0:00:36]} 5. Qe2 {[%emt 0:00:05]} e5 {[%emt 0:00:47]} 6. O-O {[%emt 0:00:07] B40: Sicilian: 2...e6, Unusual lines.} Be7 {[%emt 0:00:49]} 7. c3 {[%emt 0:01:05][%cal Od2d4]} O-O {[%emt 0:00:51]} 8. Na3 {[%emt 0:00:21] The position is equal.} Re8 {[%emt 0:00:57]} 9. d3 {[%emt 0:06:42]} h6 {[%emt 0:00:45]} 10. Nc4 {[%emt 0:00:17]} Bf8 {[%emt 0:00:48]} 11. Ne3 {[%emt 0:14:13]} d5 {[%emt 0:02:50]} 12. Nh4 {[%emt 0:20:04][%cal Re4d5] [#]} (12. exd5 {is more complex.} Nxd5 13. Nxd5 Qxd5 14. Nd2) 12... Ne7 $146 {[%emt 0:12:15]} ({Predecessor:} 12... d4 13. Nd5 Be6 14. c4 b5 15. cxb5 Bxd5 16. exd5 Nb4 17. d6 Rb8 18. a3 Nbd5 {1-0 Martinez Alcantara,J (2620)-Vokhidov,S (2530) Titled Tuesday intern op 27th July blitz 2021 (8)}) 13. f4 {[%emt 0:06:17]} exf4 {[%emt 0:05:47]} 14. gxf4 {[%emt 0:00:30]} (14. e5 {feels hotter.} fxe3 15. exf6 Nc6 16. Ng6) 14... d4 {[%emt 0:01:21]} (14... Nc6 {looks sharper.} 15. e5 d4 16. Nef5 g6) 15. cxd4 {[%emt 0:06:55]} cxd4 {[%emt 0:01:01]} 16. Nc4 {[%emt 0:00:32]} Nc6 {[%emt 0:01:24][%cal Of6e4]} 17. Nf3 {[%emt 0:02:33]} Be6 {[%emt 0:06:54]} 18. b3 {[%emt 0:08:16]} Rc8 {[%emt 0:03:55]} 19. Bb2 {[%emt 0:08:42]} Nd7 {[%emt 0:14:20]} 20. Rac1 {[%emt 0:12:54]} (20. Bxd4 $2 Nxd4 21. Nxd4 Bc5 $19) (20. Nxd4 $2 Bc5 21. Kh1 (21. Qe3 $2 Nf6 $19) 21... Nxd4 $19) 20... Bg4 {[%emt 0:14:53]} (20... b5 $5 {[%cal Rb5c4]} 21. Na3 Qa5 $11) 21. Ba3 {[%emt 0:06:48]} (21. Bxd4 $2 Nxd4 22. Qb2 Bxf3 23. Bxf3 b5 $19) 21... Nc5 {[%emt 0:05:01]} (21... Bxa3 22. Nxa3 Qe7 23. Nc2 $11) (21... b5 $1 $15 22. Nd6 Bxd6 23. Bxd6 Qf6) 22. Qd2 {[%emt 0:01:57]} (22. Bxc5 $11 Bxc5 23. Qf2) 22... Bxf3 {[%emt 0:03:03]} (22... b5 {with more complications.} 23. Nce5 Nxe4 24. dxe4 Nxe5 25. Nxe5 Bxa3 26. Nxg4 Bxc1 27. Rxc1 Rxc1+ 28. Qxc1 Qa5) 23. Rxf3 {[%emt 0:00:50]} ({White should play} 23. Bxf3 $15 b5 24. Nd6 Nxb3 25. axb3 Bxd6 26. Bxd6 Qxd6 27. Bg4) 23... b5 $1 $17 {[%emt 0:00:45]} 24. Nd6 {[%emt 0:01:35][%mdl 64] [#] Double Attack} Nxe4 {[%emt 0:03:55]} ({Don't play} 24... Bxd6 $6 25. Bxc5 Bxc5 26. Rxc5 $11) ({Better is} 24... Nxb3 $1 $17 25. axb3 Bxd6 26. Bxd6 Qxd6) 25. dxe4 $11 {[%emt 0:01:03]} Bxd6 {[%emt 0:01:51]} 26. Bxd6 {[%emt 0:00:04]} Qxd6 {[%emt 0:00:06]} 27. e5 {[%emt 0:00:02]} Qb4 {[%emt 0:01:15]} 28. Rd3 {[%emt 0:01:26]} Qxd2 {[%emt 0:03:35]} 29. Rxd2 {[%emt 0:00:01]} Nb4 {[%emt 0:00:07]} 30. Rcd1 {[%emt 0:01:09]} Nc2 {[%emt 0:03:22]} 31. Rc1 {[%emt 0:00:36]} Ne3 {[%emt 0:04:12]} 32. Rxc8 {[%emt 0:00:09]} Rxc8 {[%emt 0:00:02]} 33. Rxd4 {[%emt 0:00:07]} Nxg2 {[%emt 0:00:14]} 34. Kxg2 {[%emt 0:00:14][%mdl 4096] Endgame KR-KR} Rc2+ {[%emt 0:00:03]} 35. Kg3 {[%emt 0:00:19]} Rxa2 {[%emt 0:00:10]} 36. Rd8+ {[%emt 0:01:17]} Kh7 {[%emt 0:00:05]} 37. f5 {[%emt 0:00:18]} Re2 {[%emt 0:00:41]} 38. Rd7 {[%emt 0:01:02]} (38. Rd5 $11) 38... Rxe5 $17 {[%emt 0:01:14]} 39. Rxf7 {[%emt 0:00:12] [#]} a5 {[%emt 0:00:46]} ({Black should try} 39... Kg8 $1 $17 {[%cal Rg8f7]} 40. Rxa7 Rxf5) 40. Kf4 $1 $11 {[%emt 0:00:41]} Re2 {[%emt 0:00:27]} 41. Ra7 {[%emt 0:00:43]} Rxh2 {[%emt 0:00:48] And now ...Rb2 would win.} 42. Rxa5 {[%emt 0:00:03]} Rh4+ {[%emt 0:03:16]} 43. Ke5 {[%emt 0:00:05]} Rb4 {[%emt 0:00:28]} 44. Ra7 $1 {[%emt 0:01:16]} Rxb3 {[%emt 0:00:12] Threatens to win with ...h5.} 45. f6 {[%emt 0:00:14]} Rg3 {[%emt 0:00:14] White must now prevent ...Rg6.} 46. Rb7 $1 {[%emt 0:00:47]} ({Don't blunder} 46. Kf4 $2 Rg6 47. f7 Rf6+ 48. Kg4 Kg6 $19) 46... Rg1 {[%emt 0:02:10]} 47. Ke4 {[%emt 0:00:37]} b4 {[%emt 0:00:18] ...Rg6 would be deadly.} (47... Rg6 {seems wilder.} 48. fxg7 Rg4+ 49. Kd3 b4) 48. fxg7 $2 {[%emt 0:00:34][%mdl 8192] This costs White the game.} (48. Ke3 $11) 48... Rxg7 $19 {[%emt 0:00:20]} 49. Rb5 {[%emt 0:00:07]} (49. Rb6 Rg2 50. Kd5 (50. Rb7+ $2 Kg6 $19)) 49... Rg4+ {[%emt 0:00:48]} 50. Kf3 {[%emt 0:00:44]} Rc4 {[%emt 0:00:14] aiming for ...Kg7.} 51. Rb6 {[%emt 0:00:10]} h5 {[%emt 0:00:25][%cal Bh6h5,Bh5h4,Bh4h3][%mdl 32]} 52. Kg3 {[%emt 0:00:21]} h4+ {[%emt 0:00:16]} 53. Kg2 {[%emt 0:00:29]} Kg7 {[%emt 0:00:06]} 54. Kf3 {[%emt 0:00:30]} h3 {[%emt 0:00:43]} 55. Kg3 {[%emt 0:00:07]} Rc3+ {[%emt 0:00:05]} 56. Kh2 {[%emt 0:00:07]} b3 {[%emt 0:00:07] Weighted Error Value: White=0.59/Black=0.10 (very precise)} 0-1

[Event "20th Delhi GM Open 2023"]
[Site "New Delhi"]
[Date "2023.03.26"]
[Round "5.5"]
[White "Murzin, Volodar"]
[Black "Aswath S"]
[Result "1-0"]
[ECO "C84"]
[WhiteElo "2554"]
[BlackElo "2214"]
[Annotator "TA"]
[PlyCount "113"]
[EventDate "2023.03.23"]
[EventType "swiss"]
[EventCountry "IND"]
[SourceTitle "playchess.com"]
[Source "ChessBase"]
[SourceQuality "1"]
[TimeControl "5400+30"]

{[%evp 18,113,0,0,0,0,2,9,24,12,22,12,18,10,28,0,0,8,0,0,8,9,20,20,9,0,0,0,0,0,0,0,0,0,0,0,0,0,0,0,10,18,14,0,0,0,156,0,0,0,0,0,326,325,330,323,308,268,416,341,384,413,362,345,349,231,245,232,250,252,250,236,246,212,1077,942,1040,1169,1171,1137,29965,29968,5481,5481,29980,29981,29984,29985,29985,29986,29986,29985,29988,29989,29989,29990,29990,29991]} 1. e4 {[%emt 0:00:05]} e5 {[%emt 0:00:09]} 2. Nf3 {[%emt 0:00:07]} Nc6 {[%emt 0:00:06]} 3. Bb5 {[%emt 0:00:05]} a6 {[%emt 0:00:05]} 4. Ba4 {[%emt 0:00:04]} Nf6 {[%emt 0:00:06]} 5. O-O {[%emt 0:00:08]} Be7 {[%emt 0:00:09]} 6. d3 {[%emt 0:00:08]} b5 {[%emt 0:00:05]} 7. Bb3 {[%emt 0:00:06]} d6 {[%emt 0:00:15]} 8. a3 {[%emt 0:00:16]} O-O {[%emt 0:00:08]} 9. Nc3 {[%emt 0:00:06]} Bg4 {[%emt 0:00:10]} 10. Be3 {[%emt 0:00:14]} Nd4 {[%emt 0:00:08] C84: Closed Ruy Lopez: Unusual White 6th moves.} 11. Bxd4 {[%emt 0:00:15]} exd4 {[%emt 0:00:06]} 12. Nd5 {[%emt 0:00:03]} c5 {[%emt 0:00:07] The position is equal.} 13. h3 {[%emt 0:00:45]} Be6 {[%emt 0:00:10]} 14. Nxf6+ {[%emt 0:01:20]} Bxf6 {[%emt 0:00:09]} 15. Bxe6 {[%emt 0:00:09]} fxe6 {[%emt 0:00:07]} 16. Qe2 {[%emt 0:00:45]} e5 {[%emt 0:00:33]} 17. a4 {[%emt 0:15:44]} Qd7 {[%emt 0:01:56]} 18. b3 {[%emt 0:07:20] [#]} Rfc8 $146 {[%emt 0:02:47]} ({Predecessor:} 18... d5 19. exd5 Qxd5 20. Nd2 Rfe8 21. axb5 axb5 22. Qe4 Qxe4 23. Nxe4 Be7 24. g3 g5 {½-½ Gutkind,K (2099)-Reichardt,R (1942) Vlissingen HZ op 22nd 2018 (9)}) 19. Rfb1 {[%emt 0:18:09]} Bd8 {[%emt 0:14:23]} 20. axb5 {[%emt 0:00:21]} axb5 {[%emt 0:00:13]} 21. Rxa8 {[%emt 0:00:05]} Rxa8 {[%emt 0:00:09]} 22. Qd1 {[%emt 0:00:11]} Qa7 {[%emt 0:05:32]} 23. h4 {[%emt 0:04:30]} Qa2 {[%emt 0:04:23]} 24. g3 {[%emt 0:01:02]} h6 {[%emt 0:14:18]} 25. Kg2 {[%emt 0:09:32]} Kh7 {[%emt 0:04:22]} 26. Ng1 {[%emt 0:05:55]} Bf6 {[%emt 0:02:00]} 27. Nh3 {[%emt 0:01:52]} Kh8 {[%emt 0:05:48]} 28. Ng1 {[%emt 0:02:05][%cal Bh3g1,Bg1f3,Bf3h2,Bh2g4][%mdl 32]} c4 {[%emt 0:05:11]} 29. bxc4 {[%emt 0:04:50]} bxc4 {[%emt 0:00:11]} 30. Nf3 {[%emt 0:00:15]} c3 {[%emt 0:06:13] Inhibits Nd2.} 31. Rb6 {[%emt 0:15:51]} Qa1 $2 {[%emt 0:07:58]} ({Black should play} 31... Qe6 $11) 32. Qe2 $2 {[%emt 0:00:29]} ({White has to play} 32. Qxa1 $16 Rxa1 33. Rxd6) 32... Qc1 $11 {[%emt 0:03:49]} 33. Nh2 {[%emt 0:06:05]} Rf8 {[%emt 0:06:58]} (33... Ra1 $2 34. Rb8+ Kh7 35. Qg4 Qh1+ 36. Kh3 $18) 34. Rb7 {[%emt 0:01:24][%cal Bb6b7,Bb7d7,Bd7d6][%mdl 32] Hoping for Qh5.} Bd8 $2 {[%emt 0:02:49][%mdl 8192] [#] Black is now going downhill.} (34... Qd2 35. Qh5 $18) (34... Be7 $1 $11 {and Black is okay.}) 35. Qg4 $1 $18 {[%emt 0:04:23][%csl Gb7][%cal Rg4g7]} Bf6 {[%emt 0:00:12]} 36. Qg6 {[%emt 0:01:10] Ng4 is the strong threat.} Qb2 {[%emt 0:02:01] [#]} (36... Qxc2 $2 37. Ng4 Qxd3 38. Nxf6 $18) 37. Rd7 {[%emt 0:00:22]} (37. Rxb2 $2 cxb2 38. g4 b1=Q $19) 37... Qb8 {[%emt 0:00:48]} (37... Qxc2 $2 38. Ng4 $18 (38. Rxd6 $2 Be7 $19)) (37... Qb5 $142 38. Rxd6 Qe8) 38. Ng4 {[%emt 0:02:35] White threatens Nxf6 and mate.} Qe8 {[%emt 0:00:12]} 39. Qxe8 {[%emt 0:00:07]} Rxe8 {[%emt 0:00:03]} 40. Rxd6 {[%emt 0:00:18][%mdl 4096] Endgame KRB-KRN} Rb8 {[%emt 0:01:04]} 41. f4 {[%emt 0:00:08]} exf4 {[%emt 0:01:49]} 42. Nxf6 {[%emt 0:00:40]} (42. gxf4 $6 Rb2 $16) 42... gxf6 {[%emt 0:00:06]} 43. gxf4 {[%emt 0:00:27] KR-KR} (43. Rxd4 $6 Rb2 44. gxf4 (44. Rd8+ Kg7 $16) 44... Kg7) 43... Rb2 {[%emt 0:00:11]} 44. Rxd4 {[%emt 0:00:06]} ({Worse is} 44. Rxf6 Rxc2+ 45. Kg3 Rd2 $11) 44... Rxc2+ {[%emt 0:00:04]} 45. Kf3 {[%emt 0:00:11]} Rh2 $2 {[%emt 0:00:31]} (45... Rc1 46. Rc4 h5) 46. Kg4 {[%emt 0:00:20]} (46. Rc4 h5 47. Rxc3 Rh3+ 48. Kg2 Rxh4 $16) 46... Kg7 {[%emt 0:06:48]} 47. Rc4 {[%emt 0:00:06]} c2 {[%emt 0:00:10]} 48. Kf5 {[%emt 0:00:17] Rc7+ would be deadly.} h5 {[%emt 0:02:01]} 49. Rc7+ {[%emt 0:00:38]} Kh6 {[%emt 0:01:14]} 50. d4 {[%emt 0:00:41][%cal Bd3d4,Bd4d5,Bd5d6,Bd6d7][%mdl 32] d5 would kill now.} Re2 {[%emt 0:04:15]} 51. d5 {[%emt 0:00:44] White mates.} ({Weaker is} 51. Kxf6 Rxe4 52. Kf5 (52. Rxc2 Rxf4+ 53. Ke5 Rxh4 $14) 52... Rxd4 $16) 51... Rf2 {[%emt 0:01:39]} 52. d6 {[%emt 0:00:43]} Rd2 {[%emt 0:00:17]} 53. Ke6 {[%emt 0:00:12]} Rd4 {[%emt 0:00:44]} 54. e5 {[%emt 0:00:05]} Rxf4 {[%emt 0:00:43]} 55. d7 {[%emt 0:00:14]} Rd4 {[%emt 0:00:41]} 56. Rxc2 {[%emt 0:00:09]} fxe5 {[%emt 0:00:10]} 57. Rc8 {[%emt 0:00:08] Weighted Error Value: White=0.08 (flawless) /Black=0.54} 1-0

[Event "20th Delhi GM Open 2023"]
[Site "New Delhi"]
[Date "2023.03.26"]
[Round "5.6"]
[White "Adireddy Arjun"]
[Black "Savchenko, Boris"]
[Result "0-1"]
[ECO "B08"]
[WhiteElo "2078"]
[BlackElo "2552"]
[Annotator "TA"]
[PlyCount "98"]
[EventDate "2023.03.23"]
[EventType "swiss"]
[EventCountry "IND"]
[SourceTitle "playchess.com"]
[Source "ChessBase"]
[SourceQuality "1"]
[TimeControl "5400+30"]

{[%evp 13,98,31,47,-46,30,28,15,18,14,21,12,22,47,43,59,9,14,16,24,15,15,8,7,3,3,8,3,0,15,7,24,0,11,-38,-45,-162,-156,-170,-161,-157,-150,-168,-164,-159,-153,-264,-245,-290,-185,-196,-164,-156,-152,-325,-322,-351,-352,-434,-439,-423,-396,-366,-434,-740,-735,-706,-705,-589,-498,-739,-710,-994,-788,-772,-711,-1962,-1747,-29963,-29964,-29962,-29960,-12837,-6330,-29975,-29975,-29977,-29977]} 1. e4 {[%emt 0:00:06]} g6 {[%emt 0:01:00]} 2. d4 {[%emt 0:00:34]} Bg7 {[%emt 0:00:09]} 3. Nc3 {[%emt 0:01:33]} d6 {[%emt 0:00:09]} 4. Nf3 {[%emt 0:00:12]} c6 {[%emt 0:01:07]} 5. Be3 {[%emt 0:00:35]} Nf6 {[%emt 0:07:40]} 6. h3 {[%emt 0:03:24]} O-O {[%emt 0:00:24]} 7. Qd2 {[%emt 0:03:31]} Nbd7 {[%emt 0:01:26][%cal Bb8d7,Bd7f6,Bf6h5,Bh5g3][%mdl 32]} 8. O-O-O {[%emt 0:02:23] B08: Pirc Defence: Classical System.} (8. a4 $14) 8... Qa5 $5 {[%emt 0:06:14][%mdl 4] Exploring less charted territory.} (8... b5 $15) 9. Kb1 $11 {[%emt 0:02:39]} Re8 {[%emt 0:01:05] [#]} 10. Nd5 $146 {[%emt 0:13:49] The position is equal.} ({Predecessor:} 10. g4 Nf8 11. g5 N6d7 12. Bc4 b5 13. Bb3 Bb7 14. Qd3 a6 15. Ne2 Rac8 16. h4 {0-1 Montes,J-Meyer,T (2027) Bremen-ch op 2013 (1)}) 10... Qxd2 {[%emt 0:00:56]} 11. Nxf6+ {[%emt 0:00:07]} Nxf6 {[%emt 0:03:46]} (11... exf6 {simplifies} 12. Nxd2 Nb6 13. Bd3 d5) 12. Nxd2 {[%emt 0:00:07][%cal Bf3d2,Bd2c4,Bc4a5][%mdl 32]} e5 {[%emt 0:07:39]} 13. dxe5 {[%emt 0:01:50]} dxe5 {[%emt 0:00:11]} 14. f3 {[%emt 0:05:30]} (14. g4 $14) 14... Nh5 {[%emt 0:02:59]} 15. Nc4 {[%emt 0:12:52]} Ng3 {[%emt 0:01:44]} 16. Rg1 {[%emt 0:00:09]} Nxf1 {[%emt 0:00:14]} 17. Rgxf1 {[%emt 0:00:08] White wants to play Nd6.} Be6 {[%emt 0:00:37]} 18. Na5 {[%emt 0:02:27]} Re7 {[%emt 0:11:30]} 19. Rd2 {[%emt 0:01:11] With the idea Rfd1.} Rc7 {[%emt 0:02:50]} 20. Rfd1 {[%emt 0:07:11]} Bf6 {[%emt 0:03:01] Wards off Rd8+} 21. b3 {[%emt 0:02:49]} h5 {[%emt 0:03:07]} (21... b6 $5 22. Nc4 $8 Rb8 $11) 22. f4 {[%emt 0:11:34]} Kg7 {[%emt 0:02:28]} 23. fxe5 {[%emt 0:03:14]} (23. g4 $11 hxg4 24. hxg4 exf4 25. Bxf4) 23... Bxe5 $15 {[%emt 0:00:10]} 24. Bd4 {[%emt 0:03:30] Inhibits .} (24. Nc4 $15 Bxc4 25. bxc4) 24... Bxd4 $19 {[%emt 0:01:09]} 25. Rxd4 {[%emt 0:00:06]} b6 {[%emt 0:07:39]} 26. Nc4 {[%emt 0:00:07] [#]} c5 $1 {[%emt 0:00:22]} 27. R4d2 {[%emt 0:07:35]} Bxc4 {[%emt 0:02:08]} 28. bxc4 {[%emt 0:00:08][%mdl 4096] Endgame KRR-KRR} Re8 {[%emt 0:00:05]} 29. Rd7 {[%emt 0:01:30]} (29. Re2 $17) 29... Rxd7 {[%emt 0:00:09]} 30. Rxd7 {[%emt 0:00:02] KR-KR} a5 {[%emt 0:00:08]} 31. Rd6 {[%emt 0:02:16]} Rxe4 {[%emt 0:00:48]} 32. Rxb6 {[%emt 0:00:07]} Rxc4 {[%emt 0:00:20]} 33. a3 $2 {[%emt 0:06:08] Loses the game.} (33. Ra6 $17) 33... Rc3 {[%emt 0:01:36]} 34. Kb2 {[%emt 0:01:44] [#]} Rg3 {[%emt 0:00:07]} 35. Rb5 {[%emt 0:04:11]} a4 {[%emt 0:00:48]} (35... Rxg2 $2 {perishes.} 36. Rxa5 Rh2 37. Rxc5 $19) 36. Ra5 {[%emt 0:00:05]} Rxg2 {[%emt 0:02:04] White must now prevent ...Rh2.} 37. Rxa4 {[%emt 0:00:01]} Rg3 {[%emt 0:11:10]} 38. Re4 {[%emt 0:02:41]} (38. Rh4 $142 Kf6 39. a4) 38... Rxh3 {[%emt 0:01:43]} 39. a4 {[%emt 0:00:05]} Rh1 {[%emt 0:01:56]} 40. a5 {[%emt 0:00:20]} Rd1 {[%emt 0:00:19] aiming for ...Rd8.} 41. a6 {[%emt 0:00:42]} (41. Rc4 $142 Rd8 42. Kc3) 41... Rd8 {[%emt 0:00:21]} 42. Ra4 {[%emt 0:01:19]} g5 {[%emt 0:01:54][%cal Bg6g5,Bg5g4,Bg4g3,Bg3g2][%mdl 32]} 43. Kc3 {[%emt 0:00:43]} h4 {[%emt 0:01:06][%cal Bh5h4,Bh4h3,Bh3h2][%mdl 32] Threatens to win with ...h3.} 44. a7 {[%emt 0:00:26]} h3 {[%emt 0:01:26]} 45. a8=Q {[%emt 0:00:46]} Rxa8 {[%emt 0:00:07]} 46. Rxa8 {[%emt 0:00:03]} h2 {[%emt 0:00:15]} 47. Ra1 {[%emt 0:00:03]} g4 {[%emt 0:00:06] ( -> ...g3)} 48. Kd3 {[%emt 0:00:03]} g3 {[%emt 0:00:07]} 49. Ke2 {[%emt 0:00:05]} g2 {[%emt 0:00:04] Weighted Error Value: White=0.65/Black=0.11 (very precise)} 0-1